fUSD/lending_fUSD_20240329
["ID","MTS","AMOUNT","RATE_DAILY","PERIOD"]
[320935741,1711717846024,-500.0,0.00049315,120]
[320935742,1711717846034,-500.0,0.00049315,120]
[320935743,1711717846046,-500.0,0.00049315,120]
[320935744,1711717846056,-296.67222256,0.00049315,120]
[320935745,1711717846066,-500.0,0.00049315,120]
[320935746,1711717846076,-154.73485144,0.00049315,120]
[320935747,1711717846237,-213.90501152,0.00049315,120]
[320935748,1711717846246,-500.0,0.00049315,120]
[320935749,1711717846255,-500.0,0.00049315,120]
[320935750,1711717846265,-500.0,0.00049315,120]
[320935751,1711717846274,-500.0,0.00049315,120]
[320935752,1711717846283,-464.37718227,0.00049315,120]
[320935753,1711717846295,-500.0,0.00049315,120]
[320935754,1711717846304,-500.0,0.00049315,120]
[320935755,1711717846313,-500.0,0.00049315,120]
[320935756,1711717846323,-500.0,0.00049315,120]
[320935757,1711717846333,-397.92362321,0.00049315,120]
[320935758,1711717846342,-500.0,0.00049315,120]
[320935759,1711717846351,-500.0,0.00049315,120]
[320935760,1711717846360,-647.43,0.00049315,120]
[320935761,1711717846370,-486.23323418,0.00049315,120]
[320935762,1711717846379,-500.0,0.00049315,120]
[320935763,1711717846388,-500.0,0.00049315,120]
[320935764,1711717846398,-500.0,0.00049315,120]
[320935765,1711717846408,-539.6182226,0.00049315,120]
[320935766,1711717846418,-500.0,0.00049315,120]
[320935767,1711717846427,-500.0,0.00049315,120]
[320935768,1711717846437,-500.0,0.00049315,120]
[320935769,1711717846447,-500.0,0.00049315,120]
[320935770,1711717846456,-150.0,0.00049315,120]
[320935771,1711717846466,-500.0,0.00049315,120]
[320935772,1711717846475,-500.0,0.00049315,120]
[320935773,1711717846485,-500.0,0.00049315,120]
[320935774,1711717846495,-500.0,0.00049315,120]
[320935775,1711717846504,-500.0,0.00049315,120]
[320935776,1711717846514,-500.0,0.00049315,120]
[320935777,1711717846523,-500.0,0.00049315,120]
[320935778,1711717846533,-500.0,0.00049315,120]
[320935779,1711717846545,-500.0,0.00049315,120]
[320935780,1711717846555,-500.0,0.00049315,120]
[320935781,1711717846564,-592.15,0.00049315,120]
[320935782,1711717846574,-500.0,0.00049315,120]
[320935783,1711717846583,-500.0,0.00049315,120]
[320935784,1711717846593,-500.0,0.00049315,120]
[320935785,1711717846603,-500.0,0.00049315,120]
[320935786,1711717846613,-500.0,0.00049315,120]
[320935787,1711717846622,-500.0,0.00049315,120]
[320935788,1711717846632,-500.0,0.00049315,120]
[320935789,1711717846642,-500.0,0.00049315,2]
[320935790,1711717846652,-500.0,0.00049315,120]
[320935791,1711717846666,-500.0,0.00049315,120]
[320935792,1711717846676,-500.0,0.00049315,120]
[320935793,1711717846685,-500.0,0.00049315,120]
[320935794,1711717846695,-500.0,0.00049315,120]
[320935795,1711717846705,-500.0,0.00049315,120]
[320935796,1711717846715,-503.74536041,0.00049315,120]
[320935797,1711717846725,-500.0,0.00049315,120]
[320935798,1711717846735,-500.0,0.00049315,120]
[320935799,1711717846745,-500.0,0.00049315,120]
[320935800,1711717846755,-500.0,0.00049315,120]
[320935801,1711717846764,-500.0,0.00049315,120]
[320935802,1711717846774,-500.0,0.00049315,120]
[320935803,1711717846783,-416.52080791,0.00049315,120]
[320935804,1711717846793,-500.0,0.00049315,120]
[320935805,1711717846802,-500.0,0.00049315,120]
[320935806,1711717846811,-500.0,0.00049315,120]
[320935807,1711717846821,-500.0,0.00049315,120]
[320935808,1711717846831,-500.0,0.00049315,120]
[320935809,1711717846841,-500.0,0.00049315,120]
[320935810,1711717846850,-500.0,0.00049315,120]
[320935811,1711717846864,-500.0,0.00049315,120]
[320935812,1711717846874,-500.0,0.00049315,120]
[320935813,1711717846884,-500.0,0.00049315,120]
[320935814,1711717846894,-500.0,0.00049315,120]
[320935815,1711717846904,-500.0,0.00049315,120]
[320935816,1711717846915,-500.0,0.00049315,120]
[320935817,1711717846925,-500.0,0.00049315,120]
[320935818,1711717846935,-500.0,0.00049315,120]
[320935819,1711717846945,-500.0,0.00049315,120]
[320935820,1711717846955,-470.70547012,0.00049315,120]
[320935821,1711717846965,-500.0,0.00049315,120]
[320935822,1711717846975,-500.0,0.00049315,120]
[320935823,1711717846985,-500.0,0.00049315,120]
[320935824,1711717846995,-500.0,0.00049315,120]
[320935825,1711717847005,-500.0,0.00049315,120]
[320935826,1711717847015,-500.0,0.00049315,120]
[320935827,1711717847024,-500.0,0.00049315,120]
[320935828,1711717847034,-534.84684711,0.00049315,4]
[320935829,1711717847044,-500.0,0.00049315,120]
[320935830,1711717847055,-500.0,0.00049315,120]
[320935831,1711717847065,-500.0,0.00049315,120]
[320935832,1711717847074,-500.0,0.00049315,120]
[320935833,1711717847084,-500.0,0.00049315,120]
[320935834,1711717847093,-500.0,0.00049315,120]
[320935835,1711717847103,-599.43143715,0.00049315,120]
[320935836,1711717847112,-500.0,0.00049315,120]
[320935837,1711717847121,-203.46457774,0.00049315,120]
[320935838,1711717847136,-778.84,0.00049315,120]
[320935839,1711717847145,-500.0,0.00049315,120]
[320935840,1711717847155,-269.03391016,0.00049315,120]
[320935841,1711717847165,-234.77375746,0.00049315,120]
[320935842,1711717847174,-500.0,0.00049315,120]
[320935843,1711717847184,-500.0,0.00049315,120]
[320935844,1711717847193,-500.0,0.00049315,120]
[320935845,1711717847203,-480.31374952,0.00049315,120]
[320935846,1711717847213,-1080.64,0.00049315,120]
[320935847,1711717847222,-500.0,0.00049315,120]
[320935848,1711717847233,-500.0,0.00049315,120]
[320935849,1711717847242,-500.0,0.00049315,120]
[320935850,1711717847252,-500.0,0.00049315,120]
[320935851,1711717847262,-500.0,0.00049315,120]
[320935852,1711717847271,-5519.83,0.00049315,120]
[320935853,1711717847281,-500.0,0.00049315,120]
[320935854,1711717847292,-500.0,0.00049315,120]
[320935855,1711717847301,-500.0,0.00049315,120]
[320935856,1711717847311,-1991.3,0.00049315,120]
[320935857,1711717847320,-500.0,0.00049315,120]
[320935858,1711717847329,-500.0,0.00049315,120]
[320935859,1711717847338,-500.0,0.00049315,120]
[320935860,1711717847348,-500.0,0.00049315,120]
[320935861,1711717847357,-1398.69,0.00049315,120]
[320935862,1711717847366,-500.0,0.00049315,120]
[320935863,1711717847375,-500.0,0.00049315,80]
[320935864,1711717847384,-500.0,0.00049315,120]
[320935865,1711717847393,-500.0,0.00049315,120]
[320935866,1711717847403,-500.0,0.00049315,120]
[320935867,1711717847412,-500.0,0.00049315,120]
[320935868,1711717847421,-500.0,0.00049315,120]
[320935869,1711717847430,-500.0,0.00049315,120]
[320935870,1711717847439,-500.0,0.00049315,120]
[320935871,1711717847449,-2247.5,0.00049315,120]
[320935872,1711717847458,-500.0,0.00049315,120]
[320935873,1711717847467,-500.0,0.00049315,120]
[320935874,1711717847477,-500.0,0.00049315,60]
[320935875,1711717847486,-2304.49,0.00049315,120]
[320935876,1711717847496,-837.52,0.00049315,120]
[320935877,1711717847505,-500.0,0.00049315,120]
[320935878,1711717847514,-500.0,0.00049315,120]
[320935879,1711717847524,-500.0,0.00049315,120]
[320935880,1711717847533,-500.0,0.00049315,120]
[320935881,1711717847544,-500.0,0.00049315,120]
[320935882,1711717847554,-4548.89,0.00049315,120]
[320935883,1711717847564,-500.0,0.00049315,120]
[320935884,1711717847574,-1038.32,0.00049315,120]
[320935885,1711717847587,-929.2,0.00049315,120]
[320935886,1711717847597,-869.63,0.00049315,120]
[320935887,1711717847607,-522.99,0.00049315,120]
[320935888,1711717847616,-500.0,0.00049315,120]
[320935889,1711717847626,-547.52636207,0.00049315,120]
[320935890,1711717847636,-775.87,0.00049315,120]
[320935891,1711717847647,-2120.23,0.00049315,120]
[320935892,1711717847660,-500.0,0.00049315,120]
[320935893,1711717847670,-500.0,0.00049315,120]
[320935894,1711717847679,-199.21379009,0.00049315,120]
[320935895,1711717847690,-500.0,0.00049315,120]
[320935896,1711717847700,-500.0,0.00049315,120]
[320935897,1711717847710,-848.81,0.00049315,120]
[320935898,1711717847720,-500.0,0.00049315,120]
[320935899,1711717847730,-12375.59,0.00049315,120]
[320935900,1711717847741,-2381.03,0.00049315,120]
[320935901,1711717847751,-1445.92,0.00049315,120]
[320935902,1711717847761,-500.0,0.00049315,120]
[320935903,1711717847770,-500.0,0.00049315,120]
[320935904,1711717847780,-773.51,0.00049315,120]
[320935905,1711717847790,-500.0,0.00049315,120]
[320935906,1711717847802,-618.06,0.00049315,120]
[320935907,1711717847812,-500.0,0.00049315,120]
[320935908,1711717847822,-500.0,0.00049315,120]
[320935909,1711717847833,-504.45669009,0.00049315,120]
[320935910,1711717847843,-500.0,0.00049315,120]
[320935911,1711717847854,-500.0,0.00049315,120]
[320935912,1711717847864,-1006.88,0.00049315,120]
[320935913,1711717847874,-892.02,0.00049315,120]
[320935914,1711717847884,-297.21391957,0.00049315,120]
[320935915,1711717847894,-500.0,0.00049315,120]
[320935916,1711717847904,-500.0,0.00049315,120]
[320935917,1711717847914,-568.5763617,0.00049315,120]
[320935918,1711717847924,-1871.96,0.00049315,120]
[320935919,1711717847933,-500.0,0.00049315,120]
[320935920,1711717847943,-576.09,0.00049315,120]
[320935921,1711717847952,-1084.24,0.00049315,120]
[320935922,1711717847962,-500.0,0.00049315,120]
[320935923,1711717847972,-500.0,0.00049315,120]
[320935924,1711717847981,-500.0,0.00049315,120]
[320935925,1711717847991,-500.0,0.00049315,120]
[320935926,1711717848002,-1017.92,0.00049315,120]
[320935927,1711717848012,-500.0,0.00049315,120]
[320935928,1711717848022,-500.0,0.00049315,120]
[320935929,1711717848032,-500.0,0.00049315,120]
[320935930,1711717848044,-1346.91,0.00049315,120]
[320935931,1711717848054,-7918.66,0.00049315,120]
[320935932,1711717848064,-1251.92,0.00049315,120]
[320935933,1711717848074,-759.82,0.00049315,120]
[320935934,1711717848083,-567.98,0.00049315,120]
[320935935,1711717848094,-500.0,0.00049315,120]
[320935936,1711717848104,-833.99,0.00049315,120]
[320935937,1711717848113,-593.19,0.00049315,120]
[320935938,1711717848123,-500.0,0.00049315,120]
[320935939,1711717848133,-500.0,0.00049315,120]
[320935940,1711717848143,-500.0,0.00049315,120]
[320935941,1711717848153,-500.0,0.00049315,120]
[320935942,1711717848163,-500.0,0.00049315,120]
[320935943,1711717848172,-500.0,0.00049315,120]
[320935944,1711717848182,-500.0,0.00049315,120]
[320935945,1711717848191,-501.4,0.00049315,120]
[320935946,1711717848201,-613.74,0.00049315,120]
[320935947,1711717848210,-500.0,0.00049315,120]
[320935948,1711717848221,-629.65,0.00049315,120]
[320935949,1711717848230,-500.0,0.00049315,120]
[320935950,1711717848240,-500.0,0.00049315,120]
[320935951,1711717848249,-500.0,0.00049315,120]
[320935952,1711717848258,-659.77,0.00049315,120]
[320935953,1711717848268,-500.0,0.00049315,120]
[320935954,1711717848277,-753.42,0.00049315,120]
[320935955,1711717848287,-500.0,0.00049315,120]
[320935956,1711717848297,-500.0,0.00049315,120]
[320935957,1711717848307,-500.0,0.00049315,120]
[320935958,1711717848317,-500.0,0.00049315,120]
[320935959,1711717848326,-500.0,0.00049315,120]
[320935960,1711717848336,-500.0,0.00049315,120]
[320935961,1711717848346,-1665.88,0.00049315,120]
[320935962,1711717848355,-637.24,0.00049315,120]
[320935963,1711717848364,-970.01,0.00049315,120]
[320935964,1711717848373,-1013.23,0.00049315,120]
[320935965,1711717848383,-500.0,0.00049315,120]
[320935966,1711717848392,-885.14,0.00049315,21]
[320935967,1711717848402,-500.0,0.00049315,120]
[320935968,1711717848411,-500.0,0.00049315,120]
[320935969,1711717848420,-278.91404774,0.00049315,120]
[320935970,1711717848430,-500.0,0.00049315,120]
[320935971,1711717848439,-552.18,0.00049315,120]
[320935972,1711717848449,-500.0,0.00049315,120]
[320935973,1711717848458,-542.16,0.00049315,120]
[320935974,1711717848467,-885.51,0.00049315,120]
[320935975,1711717848476,-533.51,0.00049315,120]
[320935976,1711717848485,-917.94,0.00049315,120]
[320935977,1711717848495,-1173.66,0.00049315,120]
[320935978,1711717848504,-580.52,0.00049315,120]
[320935979,1711717848513,-500.0,0.00049315,120]
[320935980,1711717848523,-500.0,0.00049315,120]
[320935981,1711717848533,-500.0,0.00049315,120]
[320935982,1711717848544,-553.85,0.00049315,120]
[320935983,1711717848607,-1874.35,0.00049315,120]
[320935984,1711717848617,-623.83,0.00049315,120]
[320935985,1711717848627,-500.0,0.00049315,120]
[320935986,1711717848636,-500.0,0.00049315,120]
[320935987,1711717848646,-500.0,0.00049315,120]
[320935988,1711717848655,-500.0,0.00049315,120]
[320935989,1711717848669,-1018.16,0.00049315,120]
[320935990,1711717848678,-500.0,0.00049315,120]
[320935991,1711717848688,-500.0,0.00049315,120]
[320935992,1711717848698,-630.06,0.00049315,120]
[320935993,1711717848708,-500.0,0.00049315,120]
[320935994,1711717848717,-500.0,0.00049315,120]
[320935995,1711717848727,-546.14,0.00049315,120]
[320935996,1711717848737,-500.0,0.00049315,120]
[320935997,1711717848747,-500.0,0.00049315,120]
[320935998,1711717848758,-2627.15,0.00049315,120]
[320935999,1711717848767,-500.0,0.00049315,120]
[320936000,1711717848780,-1014.49,0.00049315,120]
[320936001,1711717848790,-1300.2,0.00049315,120]
[320936002,1711717848801,-500.0,0.00049315,120]
[320936003,1711717848810,-500.0,0.00049315,120]
[320936004,1711717848819,-500.0,0.00049315,120]
[320936005,1711717848828,-1025.95,0.00049315,120]
[320936006,1711717848837,-500.0,0.00049315,120]
[320936007,1711717848846,-984.89,0.00049315,120]
[320936008,1711717848855,-1789.86,0.00049315,120]
[320936009,1711717848864,-249.28522858,0.00049315,120]
[320936010,1711717848874,-500.0,0.00049315,120]
[320936011,1711717848883,-1228.11,0.00049315,60]
[320936012,1711717848892,-500.0,0.00049315,120]
[320936013,1711717848901,-270.71477142,0.00049315,120]
[320936014,1711717848911,-506.84,0.00049315,120]
[320936015,1711717848920,-840.09,0.00049315,120]
[320936016,1711717848929,-500.0,0.00049315,120]
[320936017,1711717848938,-577.48,0.00049315,120]
[320936018,1711717848947,-678.1,0.00049315,120]
[320936019,1711717848955,-500.0,0.00049315,120]
[320936020,1711717848964,-500.0,0.00049315,120]
[320936021,1711717848974,-505.19,0.00049315,120]
[320936022,1711717848983,-482.35272346,0.00049315,120]
[320936023,1711717848992,-742.6,0.00049315,120]
[320936024,1711717849001,-732.01,0.00049315,120]
[320936025,1711717849010,-555.83,0.00049315,120]
[320936026,1711717849021,-500.0,0.00049315,120]
[320936027,1711717849031,-500.0,0.00049315,120]
[320936028,1711717849041,-500.0,0.00049315,120]
[320936029,1711717849054,-522.22330101,0.00049315,120]
[320936030,1711717849063,-534.07,0.00049315,120]
[320936031,1711717849073,-1065.99,0.00049315,120]
[320936032,1711717849082,-1115.2,0.00049315,120]
[320936033,1711717849091,-500.0,0.00049315,120]
[320936034,1711717849101,-621.74055199,0.00049315,120]
[320936035,1711717849111,-500.0,0.00049315,120]
[320936036,1711717849135,-500.0,0.00049315,120]
[320936037,1711717849145,-500.0,0.00049315,120]
[320936038,1711717849155,-500.0,0.00049315,120]
[320936039,1711717849165,-500.0,0.00049315,120]
[320936040,1711717849174,-549.59,0.00049315,120]
[320936041,1711717849184,-617.87,0.00049315,120]
[320936042,1711717849193,-2105.1,0.00049315,120]
[320936043,1711717849203,-500.0,0.00049315,120]
[320936044,1711717849212,-340.85484526,0.00049315,120]
[320936045,1711717849221,-544.66,0.00049315,120]
[320936046,1711717849230,-693.07,0.00049315,120]
[320936047,1711717849239,-967.17,0.00049315,120]
[320936048,1711717849249,-500.0,0.00049315,120]
[320936049,1711717849258,-720.75,0.00049315,120]
[320936050,1711717849267,-573.1,0.00049315,120]
[320936051,1711717849277,-500.0,0.00049315,120]
[320936052,1711717849286,-500.0,0.00049315,120]
[320936053,1711717849298,-500.0,0.00049315,120]
[320936054,1711717849307,-500.0,0.00049315,120]
[320936055,1711717849317,-556.26,0.00049315,120]
[320936056,1711717849326,-500.0,0.00049315,120]
[320936057,1711717849335,-1304.35,0.00049315,120]
[320936058,1711717849344,-1140.14,0.00049315,120]
[320936059,1711717849354,-500.0,0.00049315,120]
[320936060,1711717849363,-930.22,0.00049315,120]
[320936061,1711717849373,-500.0,0.00049315,120]
[320936062,1711717849382,-508.91,0.00049315,120]
[320936063,1711717849391,-500.0,0.00049315,120]
[320936064,1711717849400,-500.0,0.00049315,120]
[320936065,1711717849409,-1175.16,0.00049315,120]
[320936066,1711717849418,-183.13752107,0.00049589,120]
[320936067,1711717849427,-515.19154261,0.00049589,120]
[320936068,1711717849436,-10000.0,0.00049589,2]
[320936069,1711717849445,-500.0,0.00049589,120]
[320936070,1711717849454,-500.0,0.00049589,120]
[320936071,1711717849464,-500.0,0.00049589,120]
[320936072,1711717849473,-534.39843446,0.00049589,120]
[320936073,1711717849482,-405.57255308,0.00049589,120]
[320936074,1711717849492,-533.04013971,0.00049589,120]
[320936075,1711717849501,-534.70978319,0.00049589,120]
[320936076,1711717849510,-500.0,0.00049589,120]
[320936077,1711717849519,-1748.17,0.00049589,120]
[320936078,1711717849529,-500.0,0.00049589,120]
[320936079,1711717849538,-500.0,0.00049589,120]
[320936080,1711717849549,-306.91101711,0.00049589,120]
[320936081,1711717849559,-500.0,0.00049589,120]
[320936082,1711717849567,-500.0,0.00049589,2]
[320936083,1711717849576,-500.0,0.00049589,120]
[320936084,1711717849585,-500.0,0.00049589,120]
[320936085,1711717849594,-500.0,0.00049589,120]
[320936086,1711717849603,-500.0,0.00049589,120]
[320936087,1711717849613,-500.0,0.00049589,120]
[320936088,1711717849622,-500.0,0.00049589,120]
[320936089,1711717849631,-498.0,0.00049589,2]
[320936090,1711717849639,-500.0,0.00049589,120]
[320936091,1711717849652,-500.0,0.00049589,120]
[320936092,1711717849661,-362.43821221,0.00049589,120]
[320936093,1711717849670,-500.0,0.00049589,120]
[320936094,1711717849680,-500.0,0.00049589,120]
[320936095,1711717849689,-500.0,0.00049589,30]
[320936096,1711717849699,-500.0,0.00049589,120]
[320936097,1711717849708,-597.30396048,0.00049589,120]
[320936098,1711717849717,-500.0,0.00049589,120]
[320936099,1711717849726,-500.0,0.00049589,120]
[320936100,1711717849736,-500.0,0.00049589,120]
[320936101,1711717849747,-500.0,0.00049589,120]
[320936102,1711717849756,-500.0,0.00049589,120]
[320936103,1711717849765,-500.0,0.00049589,120]
[320936104,1711717849774,-500.0,0.00049589,120]
[320936105,1711717849784,-500.0,0.00049589,120]
[320936106,1711717849793,-500.0,0.00049589,120]
[320936107,1711717849804,-500.0,0.00049589,120]
[320936108,1711717849813,-500.0,0.00049589,120]
[320936109,1711717849822,-500.0,0.00049589,120]
[320936110,1711717849831,-500.0,0.00049589,120]
[320936111,1711717849839,-500.0,0.00049589,120]
[320936112,1711717849848,-500.0,0.00049589,120]
[320936113,1711717849857,-500.0,0.00049589,120]
[320936114,1711717849866,-500.0,0.00049589,120]
[320936115,1711717849874,-558.25429918,0.00049589,120]
[320936116,1711717849883,-500.0,0.00049589,120]
[320936117,1711717849892,-500.0,0.00049589,120]
[320936118,1711717849902,-500.0,0.00049589,120]
[320936119,1711717849911,-500.0,0.00049589,120]
[320936120,1711717849920,-500.0,0.00049589,120]
[320936121,1711717849930,-500.0,0.00049589,120]
[320936122,1711717849939,-500.0,0.00049589,120]
[320936123,1711717849949,-500.0,0.00049589,120]
[320936124,1711717849958,-641.43700889,0.00049589,120]
[320936125,1711717849967,-500.0,0.00049589,120]
[320936126,1711717849976,-500.0,0.00049589,120]
[320936127,1711717849986,-500.0,0.00049589,120]
[320936128,1711717849995,-500.0,0.00049589,120]
[320936129,1711717850005,-500.0,0.00049589,120]
[320936130,1711717850014,-500.0,0.00049589,120]
[320936131,1711717850023,-500.0,0.00049589,120]
[320936132,1711717850033,-285.17471446,0.00049589,120]
[320936133,1711717850042,-150.0,0.00049589,120]
[320936134,1711717850053,-500.0,0.00049589,120]
[320936135,1711717850063,-500.0,0.00049589,120]
[320936136,1711717850073,-500.0,0.00049589,120]
[320936137,1711717850082,-554.24,0.00049589,120]
[320936138,1711717850091,-210.17,0.00049589,120]
[320936139,1711717850101,-467.11,0.00049589,120]
[320936140,1711717850116,-500.0,0.00049589,120]
[320936141,1711717850126,-383.23996037,0.00049589,120]
[320936142,1711717850136,-463.77,0.00049589,120]
[320936143,1711717850145,-500.0,0.00049589,120]
[320936144,1711717850154,-500.0,0.00049589,120]
[320936145,1711717850163,-203.83,0.00049589,120]
[320936146,1711717850173,-373.63582265,0.00049589,120]
[320936147,1711717850182,-500.0,0.00049589,120]
[320936148,1711717850192,-500.0,0.00049589,120]
[320936149,1711717850201,-179.93,0.00049589,120]
[320936150,1711717850210,-211.22,0.00049589,120]
[320936151,1711717850219,-195.38,0.00049589,120]
[320936152,1711717850229,-500.0,0.00049589,120]
[320936153,1711717850239,-500.0,0.00049589,120]
[320936154,1711717850248,-182.26,0.00049589,120]
[320936155,1711717850258,-500.0,0.00049589,120]
[320936156,1711717850267,-778.84,0.00049589,120]
[320936157,1711717850276,-601.77833044,0.00049589,120]
[320936158,1711717850286,-500.0,0.00049589,120]
[320936159,1711717850296,-1080.64,0.00049589,120]
[320936160,1711717850305,-5519.83,0.00049589,120]
[320936161,1711717850315,-1991.3,0.00049589,120]
[320936162,1711717850324,-500.0,0.00049589,120]
[320936163,1711717850333,-1398.69,0.00049589,120]
[320936164,1711717850343,-500.0,0.00049589,120]
[320936165,1711717850353,-500.0,0.00049589,120]
[320936166,1711717850362,-2247.5,0.00049589,120]
[320936167,1711717850372,-500.0,0.00049589,120]
[320936168,1711717850383,-2304.49,0.00049589,120]
[320936169,1711717850393,-837.52,0.00049589,120]
[320936170,1711717850402,-500.0,0.00049589,120]
[320936171,1711717850412,-500.0,0.00049589,120]
[320936172,1711717850422,-500.0,0.00049589,120]
[320936173,1711717850432,-4548.89,0.00049589,120]
[320936174,1711717850442,-500.0,0.00049589,120]
[320936175,1711717850452,-1038.32,0.00049589,120]
[320936176,1711717850461,-929.2,0.00049589,120]
[320936177,1711717850471,-869.63,0.00049589,120]
[320936178,1711717850481,-522.99,0.00049589,120]
[320936179,1711717850490,-775.87,0.00049589,120]
[320936180,1711717850500,-2120.23,0.00049589,120]
[320936181,1711717850509,-500.0,0.00049589,120]
[320936182,1711717850519,-500.0,0.00049589,120]
[320936183,1711717850528,-848.81,0.00049589,120]
[320936184,1711717850538,-12375.59,0.00049589,120]
[320936185,1711717850548,-2381.03,0.00049589,120]
[320936186,1711717850558,-1445.92,0.00049589,120]
[320936187,1711717850568,-500.0,0.00049589,120]
[320936188,1711717850578,-500.0,0.00049589,120]
[320936189,1711717850588,-773.51,0.00049589,120]
[320936190,1711717850598,-500.0,0.00049589,120]
[320936191,1711717850608,-618.06,0.00049589,120]
[320936192,1711717850618,-500.0,0.00049589,120]
[320936193,1711717850628,-500.0,0.00049589,120]
[320936194,1711717850638,-1006.88,0.00049589,120]
[320936195,1711717850648,-892.02,0.00049589,120]
[320936196,1711717850658,-500.0,0.00049589,120]
[320936197,1711717850671,-1871.96,0.00049589,120]
[320936198,1711717850681,-576.09,0.00049589,120]
[320936199,1711717850691,-1084.24,0.00049589,120]
[320936200,1711717850701,-500.0,0.00049589,120]
[320936201,1711717850711,-500.0,0.00049589,120]
[320936202,1711717850721,-500.0,0.00049589,120]
[320936203,1711717850730,-1017.92,0.00049589,120]
[320936204,1711717850740,-500.0,0.00049589,120]
[320936205,1711717850750,-500.0,0.00049589,120]
[320936206,1711717850760,-500.0,0.00049589,120]
[320936207,1711717850769,-1346.91,0.00049589,120]
[320936208,1711717850779,-7918.66,0.00049589,120]
[320936209,1711717850789,-1251.92,0.00049589,120]
[320936210,1711717850800,-759.82,0.00049589,120]
[320936211,1711717850810,-567.98,0.00049589,120]
[320936212,1711717850819,-391.01,0.00049589,120]
[320936213,1711717850831,-833.99,0.00049589,120]
[320936214,1711717850840,-500.0,0.00049589,120]
[320936215,1711717850850,-500.0,0.00049589,120]
[320936216,1711717850859,-620.51,0.00049589,120]
[320936217,1711717850869,-615.69,0.00049589,120]
[320936218,1711717850879,-500.0,0.00049589,120]
[320936219,1711717850888,-500.0,0.00049589,120]
[320936220,1711717850898,-613.74,0.00049589,120]
[320936221,1711717850908,-629.65,0.00049589,120]
[320936222,1711717850918,-440.05,0.00049589,120]
[320936223,1711717850928,-500.0,0.00049589,120]
[320936224,1711717850937,-659.77,0.00049589,120]
[320936225,1711717850947,-500.0,0.00049589,120]
[320936226,1711717850957,-500.0,0.00049589,120]
[320936227,1711717850966,-753.42,0.00049589,120]
[320936228,1711717850976,-501.19,0.00049589,120]
[320936229,1711717850985,-500.0,0.00049589,120]
[320936230,1711717850995,-500.0,0.00049589,120]
[320936231,1711717851005,-386.25,0.00049589,120]
[320936232,1711717851014,-1665.88,0.00049589,120]
[320936233,1711717851024,-970.01,0.00049589,120]
[320936234,1711717851033,-1013.23,0.00049589,120]
[320936235,1711717851043,-500.0,0.00049589,120]
[320936236,1711717851055,-885.14,0.00049589,21]
[320936237,1711717851064,-473.62265823,0.00049589,120]
[320936238,1711717851073,-552.18,0.00049589,120]
[320936239,1711717851083,-500.0,0.00049589,120]
[320936240,1711717851092,-542.16,0.00049589,120]